bitfinex-derivatives/quotes_BTCF0:USTF0_20251210
["timestamp","ask_amount","ask_price","bid_price","bid_amount"]
[1765335961535,0.0773484,92513.0,92512.0,8.507e-05]
[1765335961740,0.0773498,92501.0,92500.0,0.08624]
[1765335962046,0.0773498,92501.0,92500.0,0.16624]
[1765335962640,0.07743487,92501.0,92500.0,0.16624]
[1765335963042,0.07943487,92501.0,92500.0,0.18224]
[1765335964751,0.08043487,92501.0,92500.0,0.18524]
[1765335965545,0.08043487,92501.0,92500.0,0.16563]
[1765335966147,0.08043487,92501.0,92500.0,0.08563]
[1765335966347,0.08043487,92501.0,92500.0,0.019]
[1765335967051,0.08043487,92501.0,92491.0,0.06679216]
[1765335967052,0.0773508,92492.0,92491.0,0.06679216]
[1765335967252,0.0773508,92492.0,92491.0,0.14679216]
[1765335968045,0.07743587,92492.0,92491.0,0.14679216]
[1765335968350,0.07743587,92492.0,92491.0,0.00016216]
[1765335968753,0.07943587,92492.0,92491.0,0.00116216]
[1765335969141,0.07943587,92492.0,92480.0,0.06663]
[1765335969142,0.0773521,92481.0,92480.0,0.06663]
[1765335969351,0.0773527,92476.0,92475.0,0.08624]
[1765335969553,0.0773527,92476.0,92475.0,0.16624]
[1765335970352,0.06654,92476.0,92475.0,0.16624]
[1765335971851,0.06854,92476.0,92475.0,0.12494]
[1765335972057,0.06854,92476.0,92475.0,0.091]
[1765335972355,0.06954,92476.0,92475.0,0.1594]
[1765335977056,0.06954,92476.0,92475.0,0.094]
[1765335977459,0.06954,92476.0,92475.0,0.014]
[1765335977665,0.0686778,92476.0,92475.0,0.024]
[1765335978161,0.0686778,92476.0,92475.0,0.05603]
[1765335978854,0.0686778,92476.0,92475.0,0.0894]
[1765335979055,0.0686778,92476.0,92475.0,0.024]
[1765335979260,0.0686778,92476.0,92475.0,0.10899]
[1765335982982,0.0686778,92476.0,92475.0,0.014]
[1765335983388,0.0686778,92476.0,92466.0,0.03154216]
[1765335983389,0.0737837,92467.0,92466.0,0.03154216]
[1765335983574,0.0737837,92467.0,92466.0,0.08]
[1765335983777,0.07386655,92467.0,92466.0,0.08]
[1765335984073,0.06297,92466.0,92465.0,0.0010815]
[1765335984278,0.06297,92466.0,92465.0,0.1039215]
[1765335985185,0.06297,92466.0,92465.0,0.0639215]
[1765335985388,0.06397,92466.0,92465.0,0.0669215]
[1765335985589,0.06597,92466.0,92465.0,0.0759215]
[1765335985981,0.003,92466.0,92465.0,0.0759215]
[1765335987087,0.007,92466.0,92465.0,0.0669215]
[1765335987286,0.007,92466.0,92465.0,0.0639215]
[1765335988385,0.03956,92466.0,92465.0,0.0639215]
[1765335991593,0.007,92466.0,92465.0,0.0639215]
[1765335992995,0.007,92466.0,92465.0,0.0823615]
[1765335996899,0.06997,92466.0,92465.0,0.0823615]
[1765336005388,0.007,92466.0,92465.0,0.0823615]
[1765336005594,0.06997,92466.0,92465.0,0.0823615]
[1765336008803,0.007,92466.0,92465.0,0.0823615]
[1765336009009,0.03956,92466.0,92465.0,0.0823615]
[1765336009206,0.007,92466.0,92465.0,0.0823615]
[1765336010405,0.05821916,92474.0,92473.0,0.073653]
[1765336010613,0.0108125,92479.0,92478.0,0.06284]
[1765336011100,0.05821916,92481.0,92480.0,0.06284]
[1765336011296,0.05821916,92482.0,92481.0,0.06284]
[1765336011502,0.06903116,92483.0,92481.0,0.06284]
[1765336011806,0.10159116,92483.0,92482.0,0.06284]
[1765336012006,0.13200116,92483.0,92482.0,0.06284]
[1765336012199,0.073782,92483.0,92482.0,0.06284]
[1765336013202,0.080782,92483.0,92482.0,0.06284]
[1765336013408,0.091782,92483.0,92482.0,0.06284]
[1765336013810,0.080782,92483.0,92482.0,0.06284]
[1765336014014,0.087782,92483.0,92482.0,0.06284]
[1765336015202,0.084782,92483.0,92482.0,0.06284]
[1765336016714,0.021812,92483.0,92482.0,0.06284]
[1765336019416,0.050492,92483.0,92482.0,0.06284]
[1765336019812,0.079632,92483.0,92482.0,0.06284]
[1765336021515,0.079632,92483.0,92476.0,0.03048]
[1765336021516,0.0686326,92477.0,92476.0,0.03048]
[1765336021720,0.0686335,92469.0,92468.0,0.07783]
[1765336021920,0.0686335,92469.0,92468.0,0.05939]
[1765336023111,0.0726335,92469.0,92468.0,0.05939]
[1765336023518,0.0686335,92469.0,92468.0,0.05939]
[1765336023726,0.0746335,92469.0,92468.0,0.05939]
[1765336024530,0.0786335,92469.0,92468.0,0.05939]
[1765336025225,0.0796335,92469.0,92468.0,0.05939]
[1765336031036,0.0679539,92466.0,92465.0,0.0595115]
[1765336031236,0.0679539,92466.0,92465.0,0.0761015]
[1765336032540,0.0739539,92466.0,92465.0,0.0761015]
[1765336033042,0.0769539,92466.0,92465.0,0.0761015]
[1765336033641,0.06614,92466.0,92465.0,0.0761015]
[1765336035445,0.06614,92466.0,92465.0,0.0312215]
[1765336035640,0.06614,92466.0,92465.0,0.0595115]
[1765336036846,0.06614,92466.0,92465.0,0.0010815]
[1765336040050,0.06614,92466.0,92465.0,0.0761015]
[1765336047045,0.12435916,92466.0,92465.0,0.0761015]
[1765336049251,0.06614,92466.0,92465.0,0.0761015]
[1765336062162,0.12430304,92466.0,92465.0,0.0761015]
[1765336063259,0.009,92466.0,92465.0,0.0761015]
[1765336071271,0.03774,92466.0,92465.0,0.0761015]
[1765336071570,0.06546,92466.0,92465.0,0.0761015]
[1765336075270,0.06546,92466.0,92465.0,0.0595115]
[1765336075477,0.06546,92466.0,92465.0,0.0010815]
[1765336075674,0.06546,92466.0,92465.0,0.0592815]
[1765336082881,0.03774,92466.0,92465.0,0.0592815]
[1765336083386,0.06559,92466.0,92465.0,0.0592815]
[1765336085185,0.009,92466.0,92465.0,0.0592815]
[1765336087692,0.03824,92466.0,92465.0,0.0592815]
[1765336087894,0.06637,92466.0,92465.0,0.0592815]
[1765336093798,0.009,92466.0,92465.0,0.4292815]
[1765336096489,0.01097496,92485.0,92484.0,0.07485]
[1765336096885,0.06834496,92485.0,92484.0,0.07485]
[1765336098091,0.07834496,92485.0,92484.0,0.07485]
[1765336098691,0.08434496,92485.0,92484.0,0.07485]
[1765336099298,0.07834496,92485.0,92484.0,0.07485]
[1765336099498,0.08134496,92485.0,92484.0,0.07585]
[1765336100092,0.07334496,92485.0,92484.0,0.07585]
[1765336100403,0.07834496,92485.0,92484.0,0.07685]
[1765336101499,0.07834496,92485.0,92484.0,0.05903]
[1765336101990,0.07834496,92485.0,92484.0,0.002]
[1765336105304,0.07834496,92485.0,92484.0,0.05908]
[1765336117704,0.07834496,92485.0,92484.0,0.07575]
[1765336119111,0.06753216,92485.0,92484.0,0.07575]
[1765336123401,0.12563779,92485.0,92484.0,0.07575]
[1765336125311,0.06753216,92485.0,92484.0,0.07575]
[1765336141317,0.06753216,92485.0,92484.0,0.002]
[1765336141518,0.11642984,92485.0,92484.0,0.002]
[1765336141728,0.1166608,92485.0,92484.0,0.002]
[1765336142023,0.06753216,92485.0,92484.0,0.002]
[1765336142230,0.06753216,92485.0,92484.0,0.03188]
[1765336142923,0.06753216,92485.0,92484.0,0.002]
[1765336143228,0.06753216,92485.0,92484.0,0.05921]
[1765336143427,0.14509626,92485.0,92484.0,0.05921]
[1765336144117,0.14509626,92485.0,92484.0,0.07721]
[1765336144726,0.14509626,92485.0,92484.0,0.05921]
[1765336145327,0.06753216,92485.0,92484.0,0.05921]
[1765336148725,0.07834486,92485.0,92484.0,0.07714]
[1765336156843,0.06753216,92485.0,92484.0,0.07714]
[1765336163455,0.12571169,92485.0,92484.0,0.07714]
[1765336164848,0.12571169,92485.0,92484.0,0.05921]
[1765336165050,0.06753216,92485.0,92484.0,0.05921]
[1765336165250,0.06753216,92485.0,92484.0,0.002]
[1765336165760,0.0671438,92476.0,92475.0,0.05599216]
[1765336166756,0.02815,92476.0,92475.0,0.05599216]
[1765336167054,0.03415,92476.0,92475.0,0.05799216]
[1765336167260,0.006,92476.0,92475.0,0.05799216]
[1765336168860,0.05933,92476.0,92475.0,0.05699216]
[1765336169066,0.06533,92476.0,92475.0,0.05699216]
[1765336169548,0.06033,92476.0,92475.0,0.05699216]
[1765336169754,0.06433,92476.0,92475.0,0.05699216]
[1765336170156,0.06533,92476.0,92475.0,0.05699216]
[1765336170458,0.06133,92476.0,92475.0,0.05699216]
[1765336170654,0.06633,92476.0,92475.0,0.05699216]
[1765336171650,0.06133,92476.0,92475.0,0.05599216]
[1765336171856,0.06633,92476.0,92475.0,0.05699216]
[1765336172364,0.06533,92476.0,92475.0,0.05699216]
[1765336172956,0.06133,92476.0,92475.0,0.05699216]
[1765336173156,0.06633,92476.0,92475.0,0.05699216]
[1765336173355,0.06133,92476.0,92475.0,0.05599216]
[1765336173556,0.06633,92476.0,92475.0,0.05699216]
[1765336173866,0.06533,92476.0,92475.0,0.05699216]
[1765336174862,0.06033,92476.0,92475.0,0.05599216]
[1765336175059,0.06533,92476.0,92475.0,0.05699216]
[1765336175258,0.06133,92476.0,92475.0,0.05699216]
[1765336175459,0.06633,92476.0,92475.0,0.05699216]
[1765336177059,0.08909134,92476.0,92475.0,0.05699216]
[1765336179966,0.03276134,92476.0,92475.0,0.05699216]
[1765336181279,0.06091134,92476.0,92475.0,0.05699216]
[1765336182872,0.03276134,92476.0,92475.0,0.05699216]
[1765336187980,0.03276134,92476.0,92475.0,0.07355216]
[1765336190274,1.34e-06,92476.0,92475.0,0.07355216]
[1765336190879,0.05821862,92482.0,92481.0,0.06685]
[1765336191076,0.05821862,92483.0,92482.0,0.05583]
[1765336192086,0.08636862,92484.0,92483.0,0.066643]
[1765336192382,0.00016216,92485.0,92483.0,0.066643]
[1765336192678,0.00016216,92485.0,92484.0,0.05583]
[1765336192883,0.05649216,92485.0,92484.0,0.05583]
[1765336194283,0.05849216,92485.0,92484.0,0.05683]
[1765336194677,0.06149216,92485.0,92484.0,0.05683]
[1765336195273,0.05949216,92485.0,92484.0,0.05583]
[1765336195478,0.06049216,92485.0,92484.0,0.05783]
[1765336197982,0.06049216,92485.0,92484.0,0.07536]
[1765336202787,0.08313993,92485.0,92484.0,0.07536]
[1765336204286,0.08313993,92485.0,92484.0,0.05783]
[1765336205384,0.08313993,92485.0,92484.0,0.07065]
[1765336206999,0.06049216,92485.0,92484.0,0.07065]
[1765336212402,0.06158216,92485.0,92484.0,0.07065]
[1765336215500,0.03231216,92485.0,92484.0,0.07065]
[1765336215710,0.00416216,92485.0,92484.0,0.07065]
[1765336216594,0.05892,92501.0,92500.0,0.05662]
[1765336217604,0.05892,92501.0,92500.0,0.067431]
[1765336217904,0.0516353,92510.0,92496.0,0.01753]
[1765336217905,0.06973,92509.0,92508.0,0.06743]
[1765336219594,0.06973,92509.0,92508.0,0.06943]
[1765336219595,0.06192,92509.0,92508.0,0.06943]
[1765336221298,0.06192,92509.0,92508.0,0.08706]
[1765336221493,0.003,92509.0,92508.0,0.08706]
[1765336223202,0.00108091,92515.0,92514.0,0.0691593]
[1765336223503,0.02756,92527.0,92526.0,0.0691579]
[1765336223712,0.0567,92527.0,92526.0,0.0691579]
[1765336225608,0.0617,92527.0,92526.0,0.0701579]
[1765336225806,0.0667,92527.0,92526.0,0.0711579]
[1765336227095,0.0627,92527.0,92526.0,0.0711579]
[1765336227602,0.0627,92527.0,92526.0,0.06035]
[1765336227804,0.0577,92527.0,92526.0,0.05935]
[1765336228112,0.0577,92527.0,92526.0,0.002]
[1765336228113,0.0597,92527.0,92526.0,0.002]
[1765336228606,0.0577,92527.0,92526.0,0.05935]
[1765336228805,0.0587,92527.0,92526.0,0.0711579]
[1765336229201,0.0587,92527.0,92526.0,0.002]
[1765336229400,0.0577,92527.0,92526.0,0.002]
[1765336229604,0.0587,92527.0,92526.0,0.002]
[1765336229809,0.0587,92527.0,92526.0,0.03181]
[1765336231004,0.0577,92527.0,92526.0,0.0701579]
[1765336231209,0.0607,92527.0,92526.0,0.0711579]
[1765336231606,0.003,92527.0,92526.0,0.0701579]
[1765336232001,0.006,92527.0,92526.0,0.0711579]
[1765336232199,0.006,92527.0,92526.0,0.0701579]
[1765336232200,0.003,92527.0,92526.0,0.0701579]
[1765336232401,0.005,92527.0,92526.0,0.0711579]
[1765336232601,0.002,92527.0,92526.0,0.0701579]
[1765336232801,0.001,92527.0,92526.0,0.0701579]
[1765336233002,0.002,92527.0,92526.0,0.0721579]
[1765336233812,0.05686216,92536.0,92535.0,0.0691569]
[1765336235008,0.05886216,92536.0,92535.0,0.0711569]
[1765336236008,0.05786216,92536.0,92535.0,0.0701569]
[1765336236213,0.05886216,92536.0,92535.0,0.0711569]
[1765336236914,0.05786216,92536.0,92535.0,0.0701569]
[1765336237117,0.05986216,92536.0,92535.0,0.0711569]
[1765336237902,0.05986216,92536.0,92535.0,0.03181]
[1765336238113,0.05986216,92536.0,92535.0,0.002]
[1765336238314,0.05886216,92536.0,92535.0,0.001]
[1765336238616,0.05986216,92536.0,92535.0,0.002]
[1765336240209,0.05786216,92536.0,92535.0,0.001]
[1765336240409,0.06186216,92536.0,92535.0,0.002]
[1765336240706,0.06386216,92536.0,92535.0,0.002]
[1765336240906,0.0675078,92527.0,92526.0,0.00016216]
[1765336241315,0.0567,92508.0,92507.0,0.0691601]
[1765336241617,0.0567,92508.0,92507.0,0.05835]
[1765336242614,0.0577,92508.0,92507.0,0.06235]
[1765336244109,0.0587,92508.0,92507.0,0.06435]
[1765336245211,0.02956,92508.0,92507.0,0.06435]
[1765336245610,0.0587,92508.0,92507.0,0.06435]
[1765336246113,0.02956,92508.0,92507.0,0.06435]
[1765336246512,0.002,92508.0,92507.0,0.06435]
[1765336246719,0.02956,92508.0,92507.0,0.06435]
[1765336247211,0.0587,92508.0,92507.0,0.06435]
[1765336247412,0.002,92508.0,92507.0,0.06435]
[1765336248219,0.02956,92508.0,92507.0,0.06435]
[1765336250411,0.002,92508.0,92507.0,0.06435]
[1765336253722,0.05917,92508.0,92507.0,0.06435]
[1765336257327,0.002,92508.0,92507.0,0.06435]
[1765336257823,0.02918,92508.0,92507.0,0.06435]
[1765336258220,0.05879,92508.0,92507.0,0.06435]
[1765336258427,0.002,92508.0,92507.0,0.06435]
[1765336258729,0.02918,92508.0,92507.0,0.06435]
[1765336259026,0.05879,92508.0,92507.0,0.06435]
[1765336260921,0.002,92508.0,92507.0,0.06435]
[1765336261823,0.05879,92508.0,92507.0,0.06435]
[1765336262028,0.002,92508.0,92507.0,0.06435]
[1765336263331,0.05879,92508.0,92507.0,0.06435]
[1765336278245,0.07588,92508.0,92507.0,0.06435]
[1765336279843,0.05879,92508.0,92507.0,0.06435]
[1765336303956,0.002,92508.0,92507.0,0.06435]
[1765336304461,0.02936,92508.0,92507.0,0.06435]
[1765336304757,0.002,92508.0,92507.0,0.06435]
[1765336305261,0.05460216,92517.0,92516.0,0.0679491]
[1765336306372,0.05560216,92517.0,92516.0,0.0689491]
[1765336307569,0.05560216,92517.0,92516.0,0.0709491]
[1765336307874,0.05660216,92517.0,92516.0,0.0709491]
[1765336329789,0.00216216,92517.0,92516.0,0.0709491]
[1765336329985,0.05801847,92530.0,92529.0,0.0716]
[1765336330286,0.11425533,92547.0,92532.0,0.0824072]
[1765336330287,0.05801847,92533.0,92532.0,0.0824072]
[1765336330482,0.08755847,92538.0,92537.0,0.05481]
[1765336330682,0.02954,92538.0,92537.0,0.05481]
[1765336331385,0.05789,92538.0,92537.0,0.05481]
[1765336332087,0.06189,92538.0,92537.0,0.05581]
[1765336333176,0.06589,92538.0,92537.0,0.05681]
[1765336334578,0.03754,92538.0,92537.0,0.05681]
[1765336335197,0.06589,92538.0,92537.0,0.05681]
[1765336338592,0.03754,92538.0,92537.0,0.05681]
[1765336339096,0.06589,92538.0,92537.0,0.05681]
[1765336341196,0.07212,92538.0,92537.0,0.05681]
[1765336343598,0.06589,92538.0,92537.0,0.05681]
[1765336349501,0.07736,92538.0,92537.0,0.05681]
[1765336354200,0.06589,92538.0,92537.0,0.05681]
[1765336363717,0.06589,92538.0,92537.0,0.002]
[1765336363718,0.07736,92538.0,92537.0,0.002]
[1765336365610,0.07736,92538.0,92528.0,0.00016216]
[1765336365611,0.0772476,92529.0,92528.0,0.00016216]
[1765336365811,0.13557001,92529.0,92528.0,0.00016216]
[1765336366022,0.0772476,92529.0,92528.0,0.00016216]
[1765336366811,0.0792476,92529.0,92528.0,0.00116216]
[1765336367318,0.13752559,92529.0,92528.0,0.00116216]
[1765336367518,0.0792476,92529.0,92528.0,0.00116216]
[1765336368429,0.0802476,92529.0,92528.0,0.00216216]
[1765336368820,0.13852559,92529.0,92528.0,0.00216216]
[1765336369220,0.0802476,92529.0,92528.0,0.00216216]
[1765336372721,0.0802476,92529.0,92528.0,0.05801216]
[1765336373025,0.06944,92529.0,92528.0,0.05801216]
[1765336374720,0.05791,92529.0,92528.0,0.05801216]
[1765336382418,0.05791,92529.0,92528.0,0.02943216]
[1765336382623,0.05791,92529.0,92528.0,0.00216216]
[1765336388626,0.05791,92529.0,92528.0,0.03185216]
[1765336388928,0.05791,92529.0,92528.0,0.06048216]
[1765336389325,0.05791,92529.0,92528.0,0.00216216]
[1765336389838,0.05791,92529.0,92528.0,0.04265986]
[1765336390624,0.05791,92529.0,92528.0,0.07128986]
[1765336391122,0.05791,92529.0,92528.0,0.08389986]
[1765336391527,0.05791,92529.0,92528.0,0.07128986]
[1765336397127,0.05791,92529.0,92528.0,0.06048216]
[1765336397838,0.05791,92529.0,92528.0,0.00216216]
[1765336399733,0.05791,92529.0,92528.0,0.03185216]
[1765336400726,0.05791,92529.0,92528.0,0.06048216]
[1765336412148,0.003,92529.0,92528.0,0.07820216]
[1765336414936,0.05934,92529.0,92528.0,0.07820216]
[1765336415157,0.05934,92529.0,92528.0,0.09936771]
[1765336415542,0.05934,92529.0,92528.0,0.06048216]
[1765336415848,0.05934,92529.0,92528.0,0.09936764]
[1765336416550,0.05934,92529.0,92528.0,0.09936473]
[1765336417153,0.05934,92529.0,92528.0,0.06048216]
[1765336417449,0.05934,92529.0,92528.0,0.07820216]
[1765336417450,0.003,92529.0,92528.0,0.07820216]
[1765336436668,0.05806,92529.0,92528.0,0.07820216]
[1765336436874,0.03097,92529.0,92528.0,0.07820216]
[1765336437370,0.003,92529.0,92528.0,0.07820216]
[1765336438068,0.05806,92529.0,92528.0,0.07820216]
[1765336438270,0.03097,92529.0,92528.0,0.07820216]
[1765336438466,0.003,92529.0,92528.0,0.07820216]
[1765336440268,0.05806,92529.0,92528.0,0.06048216]
[1765336440566,0.05806,92529.0,92528.0,0.00216216]
[1765336441168,0.0658696,92512.0,92511.0,0.05592]
[1765336441363,0.07241,92512.0,92511.0,0.05592]
[1765336441671,0.05506,92512.0,92511.0,0.05592]
[1765336442459,0.05506,92512.0,92511.0,0.05692]
[1765336442661,0.05606,92512.0,92511.0,0.05692]
[1765336443661,0.05606,92512.0,92511.0,0.05992]
[1765336443662,0.05706,92512.0,92511.0,0.05992]
[1765336449273,0.002,92512.0,92511.0,0.05992]
[1765336449968,0.00016216,92521.0,92520.0,0.06906]
[1765336450168,0.00016216,92521.0,92520.0,0.0798686]
[1765336450474,0.02837216,92521.0,92520.0,0.0798686]
[1765336450876,0.00016216,92521.0,92520.0,0.0798686]
[1765336451075,0.02837216,92521.0,92520.0,0.0798686]
[1765336451276,0.03137216,92521.0,92520.0,0.0818686]
[1765336452180,0.03037216,92521.0,92520.0,0.0818686]
[1765336452875,0.00216216,92521.0,92520.0,0.0818686]
[1765336456274,0.03037216,92521.0,92520.0,0.0818686]
[1765336456473,0.05914216,92521.0,92520.0,0.0818686]
[1765336457166,0.08183226,92521.0,92520.0,0.0818686]
[1765336458175,0.08183226,92521.0,92520.0,0.0426386]
[1765336458580,0.08183226,92521.0,92520.0,0.0722686]
[1765336458777,0.08183226,92521.0,92520.0,0.06146]
[1765336459280,0.08183226,92521.0,92520.0,0.07058]
[1765336461681,0.02485226,92521.0,92520.0,0.07058]
[1765336462373,0.05306226,92521.0,92520.0,0.07058]
[1765336463574,0.08183226,92521.0,92520.0,0.07058]
[1765336464474,0.08184454,92521.0,92520.0,0.07058]
[1765336468980,0.08184454,92521.0,92520.0,0.06146]
[1765336471287,0.08184454,92521.0,92520.0,0.07887]
[1765336472789,0.08184454,92521.0,92520.0,0.06146]
[1765336473889,0.08184454,92521.0,92520.0,0.07887]
[1765336474192,0.02486454,92521.0,92520.0,0.07887]
[1765336474482,0.08145454,92521.0,92520.0,0.07887]
[1765336475889,0.05256454,92521.0,92520.0,0.07887]
[1765336476088,0.02486454,92521.0,92520.0,0.07887]
[1765336478188,0.05256454,92521.0,92520.0,0.07887]
[1765336480393,0.02486454,92521.0,92520.0,0.07887]
[1765336481094,0.05256454,92521.0,92520.0,0.13723723]
[1765336482894,0.08145454,92521.0,92520.0,0.13723723]
[1765336484191,0.05875216,92521.0,92520.0,0.07887]
[1765336487792,0.0814122,92521.0,92520.0,0.07887]
[1765336487995,0.0814122,92521.0,92520.0,0.06146]
[1765336489397,0.08119597,92521.0,92520.0,0.06146]
[1765336491399,0.08119597,92521.0,92520.0,0.07887]
[1765336491802,0.08103381,92521.0,92520.0,0.07887]
[1765336492901,0.05837377,92521.0,92520.0,0.07887]
[1765336494799,0.05837377,92521.0,92520.0,0.06146]
[1765336497300,0.05837377,92521.0,92520.0,0.11982723]
[1765336499696,0.00178377,92521.0,92520.0,0.13327723]
[1765336499892,0.00178377,92521.0,92520.0,0.49491]
[1765336500908,0.05800216,92530.0,92529.0,0.05947]
[1765336501104,0.08016057,92530.0,92529.0,0.05947]
[1765336501605,0.08016057,92530.0,92529.0,0.0702776]
[1765336502803,0.08516057,92530.0,92529.0,0.0722776]
[1765336503608,0.08216057,92530.0,92529.0,0.0712776]
[1765336503796,0.08116057,92530.0,92529.0,0.0712776]
[1765336504002,0.08216057,92530.0,92529.0,0.003]
[1765336507108,0.05949829,92530.0,92529.0,0.003]
[1765336507507,0.10897894,92530.0,92529.0,0.003]
[1765336508010,0.05949829,92530.0,92529.0,0.003]
[1765336508810,0.05949829,92530.0,92529.0,0.03115]
[1765336509112,0.11778787,92530.0,92529.0,0.03115]
[1765336509310,0.11778787,92530.0,92529.0,0.003]
[1765336511506,0.11772787,92530.0,92529.0,0.003]
[1765336513709,0.05654,92513.0,92510.0,0.03890964]
[1765336514011,0.05654,92511.0,92510.0,0.0671498]
[1765336514715,0.05654,92511.0,92510.0,0.0839498]
[1765336514918,0.05654,92511.0,92510.0,0.0909498]
[1765336515219,0.05854,92511.0,92510.0,0.1059498]
[1765336515616,0.05954,92511.0,92510.0,0.1099498]
[1765336521817,0.0703497,92511.0,92510.0,0.0931498]
[1765336522122,0.0703497,92511.0,92510.0,0.026]
[1765336528731,0.0703497,92511.0,92510.0,0.05556]
[1765336529432,0.0703497,92511.0,92510.0,0.026]
[1765336530629,0.0703497,92511.0,92510.0,0.05556]
[1765336533230,0.0703497,92511.0,92510.0,0.026]
[1765336534435,0.0703497,92511.0,92510.0,0.05556]
[1765336535724,0.0702897,92511.0,92510.0,0.08514]
[1765336537735,0.0702897,92511.0,92510.0,0.026]
[1765336540737,0.0702897,92511.0,92510.0,0.08514]
[1765336547638,0.0702897,92511.0,92510.0,0.026]
[1765336548438,0.0702897,92511.0,92510.0,0.05556]
[1765336549337,0.0702897,92511.0,92510.0,0.08514]
[1765336560745,0.0702897,92511.0,92502.0,0.00016216]
[1765336560746,0.0703206,92503.0,92502.0,0.00016216]
[1765336560950,0.070322,92491.0,92490.0,0.0575512]
[1765336561450,0.070322,92491.0,92490.0,0.0281712]
[1765336562252,0.070322,92491.0,92490.0,0.0010812]
[1765336562448,0.072322,92491.0,92490.0,0.0170812]
[1765336563148,0.074322,92491.0,92490.0,0.0190812]
[1765336563551,0.074322,92491.0,92490.0,0.0755512]
[1765336567041,0.09705399,92491.0,92490.0,0.0755512]
[1765336568552,0.14679494,92491.0,92490.0,0.0190812]
[1765336569652,0.0684131,92482.0,92481.0,0.00016216]
[1765336569849,0.0684131,92482.0,92481.0,0.02882216]
[1765336570051,0.0684131,92482.0,92481.0,0.05771216]
[1765336571347,0.0734131,92482.0,92481.0,0.05771216]
[1765336571543,0.0824131,92482.0,92481.0,0.05771216]
[1765336572651,0.0684144,92471.0,92470.0,0.05755]
[1765336574645,0.0834144,92471.0,92470.0,0.05755]
[1765336575648,0.0834144,92471.0,92470.0,0.02866]
[1765336575954,0.0834144,92471.0,92470.0,0.05755]
[1765336577155,0.0834144,92471.0,92470.0,0.07496]
[1765336578055,0.0834144,92471.0,92470.0,0.05755]
[1765336579051,0.0834144,92471.0,92470.0,0.07496]
[1765336588269,0.09533726,92471.0,92470.0,0.07496]
[1765336588459,0.015,92471.0,92470.0,0.07496]
[1765336589165,0.03775356,92471.0,92470.0,0.07496]
[1765336589957,0.015,92471.0,92470.0,0.07496]
[1765336590764,0.00016216,92480.0,92479.0,0.05601]
[1765336590962,0.02291925,92480.0,92479.0,0.05601]
[1765336591876,0.02291925,92480.0,92479.0,0.0668234]
[1765336592265,0.04091925,92480.0,92479.0,0.0668234]
[1765336592768,0.04591925,92480.0,92479.0,0.0678234]
[1765336596169,0.02316216,92480.0,92479.0,0.0678234]
[1765336597372,0.04594938,92480.0,92479.0,0.0678234]
[1765336601069,0.02316216,92480.0,92479.0,0.0678234]
[1765336607871,0.08088216,92480.0,92479.0,0.0678234]
[1765336609174,0.05277216,92480.0,92479.0,0.0678234]
[1765336609781,0.08088216,92480.0,92479.0,0.0678234]
[1765336611083,0.08813216,92480.0,92479.0,0.0118134]
[1765336611285,0.08813216,92480.0,92479.0,0.001]
[1765336611778,0.11090187,92480.0,92479.0,0.001]
[1765336612979,0.068535,92466.0,92465.0,0.0570915]
[1765336613884,0.09130419,92466.0,92465.0,0.0010815]
[1765336614076,0.09130419,92466.0,92465.0,0.0600615]
[1765336614582,0.10230419,92466.0,92465.0,0.0600615]
[1765336615874,0.079535,92466.0,92465.0,0.0600615]
[1765336616083,0.06872,92466.0,92465.0,0.0770315]
[1765336616285,0.06872,92466.0,92465.0,0.0600615]
[1765336621893,0.06872,92466.0,92465.0,0.0010815]
[1765336622385,0.06872,92466.0,92461.0,0.00016216]
[1765336622386,0.05761,92462.0,92461.0,0.00016216]
[1765336622582,0.05761,92462.0,92461.0,0.01016216]
[1765336622783,0.0684254,92462.0,92461.0,0.01016216]
[1765336623282,0.0684254,92462.0,92461.0,0.06914216]
[1765336623481,0.0704254,92462.0,92461.0,0.07014216]
[1765336623687,0.0784254,92462.0,92461.0,0.07014216]
[1765336625190,0.0784254,92462.0,92461.0,0.01116216]
[1765336626190,0.0784254,92462.0,92461.0,0.00116216]
[1765336626382,0.10119227,92462.0,92461.0,0.00116216]
[1765336626783,0.0684269,92449.0,92448.0,0.05910327]
[1765336626984,0.0684269,92449.0,92448.0,0.13910327]
[1765336628093,0.0684269,92449.0,92448.0,0.14110327]
[1765336628296,0.0704269,92449.0,92448.0,0.14110327]
[1765336628992,0.0724269,92449.0,92448.0,0.14110327]
[1765336629193,0.06161,92449.0,92448.0,0.14110327]
[1765336629391,0.004,92449.0,92448.0,0.14110327]
[1765336635690,0.06216,92449.0,92448.0,0.14110327]
[1765336636689,0.06216,92449.0,92448.0,0.06110327]
[1765336636895,0.06216,92449.0,92448.0,0.08110327]
[1765336637295,0.06216,92449.0,92448.0,0.03210327]
[1765336637988,0.06216,92449.0,92448.0,0.05985327]
[1765336642802,0.03358,92449.0,92448.0,0.05985327]
[1765336643304,0.06216,92449.0,92448.0,0.05985327]
[1765336647203,0.004,92449.0,92448.0,0.05985327]
[1765336649491,0.06043,92449.0,92448.0,0.05985327]
[1765336649698,0.083339,92449.0,92448.0,0.05985327]
[1765336650299,0.026909,92449.0,92448.0,0.05985327]
[1765336650701,0.004,92449.0,92448.0,0.05985327]
[1765336655609,0.004,92449.0,92448.0,0.11820167]
[1765336655910,0.004,92449.0,92448.0,0.05985327]
[1765336658299,0.00016225,92458.0,92457.0,0.067576]
[1765336660605,0.00716225,92458.0,92457.0,0.068576]
[1765336661419,0.00616225,92458.0,92457.0,0.067576]
[1765336661721,0.00716225,92458.0,92457.0,0.068576]
[1765336663312,0.00616225,92458.0,92457.0,0.067576]
[1765336663521,0.00716225,92458.0,92457.0,0.068576]
[1765336670424,0.06359225,92458.0,92457.0,0.068576]
[1765336670627,0.03427225,92458.0,92457.0,0.068576]
[1765336670926,0.00716225,92458.0,92457.0,0.068576]
[1765336672418,0.00716225,92458.0,92457.0,0.12693569]
[1765336672614,0.00716225,92458.0,92457.0,0.068576]
[1765336675222,0.05705,92477.0,92476.0,0.0685338]
[1765336675422,0.0801286,92477.0,92476.0,0.0685338]
[1765336676425,0.0841286,92477.0,92476.0,0.0695338]
[1765336676925,0.0941286,92477.0,92476.0,0.0695338]